Workbook

Sheet Masterlist 2015
A1: ID | B1: Voornaam | C1: Achternaam | D1: Volledige naam | E1: MV | F1: Handicap | G1: Shotgun [datum] | H1: PLHCP 1-9 | I1: PLHCP 10-18
A2: 1 | B2: Adorp | C2: Freek | D2: =CONCATENATE(C2, " ", B2) -> Freek Adorp | E2: M | G2: ja | H2: =IFERROR(IF($E2="M",VLOOKUP($F2,HRoodPLHCP,2),VLOOKUP($F2,DRoodPLHCP,2)),"") ->  | I2: =IFERROR(IF($E2="M",VLOOKUP($F2,H10RoodPLHCP,2),VLOOKUP($F2,D10RoodPLHCP,2)),"") -> 
A3: 2 | B3: Aikema | C3: Dirk | D3: =CONCATENATE(C3, " ", B3) -> Dirk Aikema | E3: M | H3: =IFERROR(IF($E3="M",VLOOKUP($F3,HRoodPLHCP,2),VLOOKUP($F3,DRoodPLHCP,2)),"") ->  | I3: =IFERROR(IF($E3="M",VLOOKUP($F3,H10RoodPLHCP,2),VLOOKUP($F3,D10RoodPLHCP,2)),"") -> 
A4: 3 | B4: Arends | C4: Ellen | D4: =CONCATENATE(C4, " ", B4) -> Ellen Arends | E4: V | F4: 27.9 | G4: ja | H4: =IFERROR(IF($E4="M",VLOOKUP($F4,HRoodPLHCP,2),VLOOKUP($F4,DRoodPLHCP,2)),"") -> 18 | I4: =IFERROR(IF($E4="M",VLOOKUP($F4,H10RoodPLHCP,2),VLOOKUP($F4,D10RoodPLHCP,2)),"") -> 18
A5: 4 | B5: Berg, van der | C5: Karel | D5: =CONCATENATE(C5, " ", B5) -> Karel Berg, van der | E5: M | F5: 22.3 | G5: ja | H5: =IFERROR(IF($E5="M",VLOOKUP($F5,HRoodPLHCP,2),VLOOKUP($F5,DRoodPLHCP,2)),"") -> 10 | I5: =IFERROR(IF($E5="M",VLOOKUP($F5,H10RoodPLHCP,2),VLOOKUP($F5,D10RoodPLHCP,2)),"") -> 10
A6: 5 | B6: Bruin, de | C6: Michael | D6: =CONCATENATE(C6, " ", B6) -> Michael Bruin, de | E6: M | F6: 20.4 | G6: ja | H6: =IFERROR(IF($E6="M",VLOOKUP($F6,HRoodPLHCP,2),VLOOKUP($F6,DRoodPLHCP,2)),"") -> 9 | I6: =IFERROR(IF($E6="M",VLOOKUP($F6,H10RoodPLHCP,2),VLOOKUP($F6,D10RoodPLHCP,2)),"") -> 9
A7: 6 | B7: Clevering | C7: Jan | D7: =CONCATENATE(C7, " ", B7) -> Jan Clevering | E7: M | F7: 28.1 | H7: =IFERROR(IF($E7="M",VLOOKUP($F7,HRoodPLHCP,2),VLOOKUP($F7,DRoodPLHCP,2)),"") -> 13 | I7: =IFERROR(IF($E7="M",VLOOKUP($F7,H10RoodPLHCP,2),VLOOKUP($F7,D10RoodPLHCP,2)),"") -> 13
A8: 7 | B8: Claassen | C8: Annie | D8: =CONCATENATE(C8, " ", B8) -> Annie Claassen | E8: V | F8: 24 | G8: ja | H8: =IFERROR(IF($E8="M",VLOOKUP($F8,HRoodPLHCP,2),VLOOKUP($F8,DRoodPLHCP,2)),"") -> 15 | I8: =IFERROR(IF($E8="M",VLOOKUP($F8,H10RoodPLHCP,2),VLOOKUP($F8,D10RoodPLHCP,2)),"") -> 16
A9: 8 | B9: Cohen | C9: Sandra | D9: =CONCATENATE(C9, " ", B9) -> Sandra Cohen | E9: V | F9: 24.7 | G9: ja | H9: =IFERROR(IF($E9="M",VLOOKUP($F9,HRoodPLHCP,2),VLOOKUP($F9,DRoodPLHCP,2)),"") -> 16 | I9: =IFERROR(IF($E9="M",VLOOKUP($F9,H10RoodPLHCP,2),VLOOKUP($F9,D10RoodPLHCP,2)),"") -> 16
A10: 9 | B10: Davids | C10: Mark | D10: =CONCATENATE(C10, " ", B10) -> Mark Davids | E10: M | F10: 24.5 | H10: =IFERROR(IF($E10="M",VLOOKUP($F10,HRoodPLHCP,2),VLOOKUP($F10,DRoodPLHCP,2)),"") -> 11 | I10: =IFERROR(IF($E10="M",VLOOKUP($F10,H10RoodPLHCP,2),VLOOKUP($F10,D10RoodPLHCP,2)),"") -> 11
A11: 10 | B11: Dekker | C11: Janet | D11: =CONCATENATE(C11, " ", B11) -> Janet Dekker | E11: V | F11: 24.9 | H11: =IFERROR(IF($E11="M",VLOOKUP($F11,HRoodPLHCP,2),VLOOKUP($F11,DRoodPLHCP,2)),"") -> 16 | I11: =IFERROR(IF($E11="M",VLOOKUP($F11,H10RoodPLHCP,2),VLOOKUP($F11,D10RoodPLHCP,2)),"") -> 16
A12: 11 | B12: Doornbos | C12: Bart | D12: =CONCATENATE(C12, " ", B12) -> Bart Doornbos | E12: M | F12: 26.7 | G12: ja | H12: =IFERROR(IF($E12="M",VLOOKUP($F12,HRoodPLHCP,2),VLOOKUP($F12,DRoodPLHCP,2)),"") -> 12 | I12: =IFERROR(IF($E12="M",VLOOKUP($F12,H10RoodPLHCP,2),VLOOKUP($F12,D10RoodPLHCP,2)),"") -> 12
A13: 12 | B13: Drenth | C13: Steven | D13: =CONCATENATE(C13, " ", B13) -> Steven Drenth | E13: M | F13: 28.2 | H13: =IFERROR(IF($E13="M",VLOOKUP($F13,HRoodPLHCP,2),VLOOKUP($F13,DRoodPLHCP,2)),"") -> 13 | I13: =IFERROR(IF($E13="M",VLOOKUP($F13,H10RoodPLHCP,2),VLOOKUP($F13,D10RoodPLHCP,2)),"") -> 13
A14: 13 | B14: Dijkema | C14: Marie | D14: =CONCATENATE(C14, " ", B14) -> Marie Dijkema | E14: V | F14: 23.7 | H14: =IFERROR(IF($E14="M",VLOOKUP($F14,HRoodPLHCP,2),VLOOKUP($F14,DRoodPLHCP,2)),"") -> 15 | I14: =IFERROR(IF($E14="M",VLOOKUP($F14,H10RoodPLHCP,2),VLOOKUP($F14,D10RoodPLHCP,2)),"") -> 16
A15: 14 | B15: Dijkstra | C15: Kim | D15: =CONCATENATE(C15, " ", B15) -> Kim Dijkstra | E15: V | F15: 23.9 | G15: ja | H15: =IFERROR(IF($E15="M",VLOOKUP($F15,HRoodPLHCP,2),VLOOKUP($F15,DRoodPLHCP,2)),"") -> 15 | I15: =IFERROR(IF($E15="M",VLOOKUP($F15,H10RoodPLHCP,2),VLOOKUP($F15,D10RoodPLHCP,2)),"") -> 16
A16: 15 | B16: Edinga | C16: Angela | D16: =CONCATENATE(C16, " ", B16) -> Angela Edinga | E16: V | F16: 28.5 | G16: ja | H16: =IFERROR(IF($E16="M",VLOOKUP($F16,HRoodPLHCP,2),VLOOKUP($F16,DRoodPLHCP,2)),"") -> 18 | I16: =IFERROR(IF($E16="M",VLOOKUP($F16,H10RoodPLHCP,2),VLOOKUP($F16,D10RoodPLHCP,2)),"") -> 19
A17: 16 | B17: Eggens | C17: Julius | D17: =CONCATENATE(C17, " ", B17) -> Julius Eggens | E17: M | F17: 13.4 | G17: ja | H17: =IFERROR(IF($E17="M",VLOOKUP($F17,HRoodPLHCP,2),VLOOKUP($F17,DRoodPLHCP,2)),"") -> 5 | I17: =IFERROR(IF($E17="M",VLOOKUP($F17,H10RoodPLHCP,2),VLOOKUP($F17,D10RoodPLHCP,2)),"") -> 5
A18: 17 | B18: Feiken | C18: Martin | D18: =CONCATENATE(C18, " ", B18) -> Martin Feiken | E18: M | F18: 23.7 | H18: =IFERROR(IF($E18="M",VLOOKUP($F18,HRoodPLHCP,2),VLOOKUP($F18,DRoodPLHCP,2)),"") -> 11 | I18: =IFERROR(IF($E18="M",VLOOKUP($F18,H10RoodPLHCP,2),VLOOKUP($F18,D10RoodPLHCP,2)),"") -> 10
A19: 18 | B19: Fischer | C19: Sofie | D19: =CONCATENATE(C19, " ", B19) -> Sofie Fischer | E19: V | F19: 28.5 | G19: ja | H19: =IFERROR(IF($E19="M",VLOOKUP($F19,HRoodPLHCP,2),VLOOKUP($F19,DRoodPLHCP,2)),"") -> 18 | I19: =IFERROR(IF($E19="M",VLOOKUP($F19,H10RoodPLHCP,2),VLOOKUP($F19,D10RoodPLHCP,2)),"") -> 19
A20: 19 | B20: Feikema | C20: Emmy | D20: =CONCATENATE(C20, " ", B20) -> Emmy Feikema | E20: V | F20: 24.6 | G20: ja | H20: =IFERROR(IF($E20="M",VLOOKUP($F20,HRoodPLHCP,2),VLOOKUP($F20,DRoodPLHCP,2)),"") -> 16 | I20: =IFERROR(IF($E20="M",VLOOKUP($F20,H10RoodPLHCP,2),VLOOKUP($F20,D10RoodPLHCP,2)),"") -> 16
A21: 20 | B21: Folkerts | C21: Rob | D21: =CONCATENATE(C21, " ", B21) -> Rob Folkerts | E21: M | F21: 20.2 | H21: =IFERROR(IF($E21="M",VLOOKUP($F21,HRoodPLHCP,2),VLOOKUP($F21,DRoodPLHCP,2)),"") -> 9 | I21: =IFERROR(IF($E21="M",VLOOKUP($F21,H10RoodPLHCP,2),VLOOKUP($F21,D10RoodPLHCP,2)),"") -> 9
A22: 21 | B22: Franken | C22: Chris | D22: =CONCATENATE(C22, " ", B22) -> Chris Franken | E22: M | F22: 26.5 | G22: ja | H22: =IFERROR(IF($E22="M",VLOOKUP($F22,HRoodPLHCP,2),VLOOKUP($F22,DRoodPLHCP,2)),"") -> 12 | I22: =IFERROR(IF($E22="M",VLOOKUP($F22,H10RoodPLHCP,2),VLOOKUP($F22,D10RoodPLHCP,2)),"") -> 12
A23: 22 | B23: Geertjes | C23: Daan | D23: =CONCATENATE(C23, " ", B23) -> Daan Geertjes | E23: M | F23: 26.4 | G23: ja | H23: =IFERROR(IF($E23="M",VLOOKUP($F23,HRoodPLHCP,2),VLOOKUP($F23,DRoodPLHCP,2)),"") -> 12 | I23: =IFERROR(IF($E23="M",VLOOKUP($F23,H10RoodPLHCP,2),VLOOKUP($F23,D10RoodPLHCP,2)),"") -> 12
A24: 23 | B24: Grave | C24: Ab | D24: =CONCATENATE(C24, " ", B24) -> Ab Grave | E24: M | F24: 23.5 | H24: =IFERROR(IF($E24="M",VLOOKUP($F24,HRoodPLHCP,2),VLOOKUP($F24,DRoodPLHCP,2)),"") -> 10 | I24: =IFERROR(IF($E24="M",VLOOKUP($F24,H10RoodPLHCP,2),VLOOKUP($F24,D10RoodPLHCP,2)),"") -> 10
A25: 24 | B25: Groen | C25: Jan | D25: =CONCATENATE(C25, " ", B25) -> Jan Groen | E25: M | F25: 22.9 | H25: =IFERROR(IF($E25="M",VLOOKUP($F25,HRoodPLHCP,2),VLOOKUP($F25,DRoodPLHCP,2)),"") -> 10 | I25: =IFERROR(IF($E25="M",VLOOKUP($F25,H10RoodPLHCP,2),VLOOKUP($F25,D10RoodPLHCP,2)),"") -> 10
A26: 25 | B26: Groot, de | C26: Anneke | D26: =CONCATENATE(C26, " ", B26) -> Anneke Groot, de | E26: V | F26: 43 | G26: ja | H26: =IFERROR(IF($E26="M",VLOOKUP($F26,HRoodPLHCP,2),VLOOKUP($F26,DRoodPLHCP,2)),"") -> 26 | I26: =IFERROR(IF($E26="M",VLOOKUP($F26,H10RoodPLHCP,2),VLOOKUP($F26,D10RoodPLHCP,2)),"") -> 27
A27: 26 | B27: Haas | C27: Marieke | D27: =CONCATENATE(C27, " ", B27) -> Marieke Haas | E27: V | F27: 29.6 | H27: =IFERROR(IF($E27="M",VLOOKUP($F27,HRoodPLHCP,2),VLOOKUP($F27,DRoodPLHCP,2)),"") -> 19 | I27: =IFERROR(IF($E27="M",VLOOKUP($F27,H10RoodPLHCP,2),VLOOKUP($F27,D10RoodPLHCP,2)),"") -> 19
A28: 27 | B28: Hesseling | C28: Alex | D28: =CONCATENATE(C28, " ", B28) -> Alex Hesseling | E28: M | F28: 25 | H28: =IFERROR(IF($E28="M",VLOOKUP($F28,HRoodPLHCP,2),VLOOKUP($F28,DRoodPLHCP,2)),"") -> 11 | I28: =IFERROR(IF($E28="M",VLOOKUP($F28,H10RoodPLHCP,2),VLOOKUP($F28,D10RoodPLHCP,2)),"") -> 11
A29: 28 | B29: Hilbrands | C29: Chris | D29: =CONCATENATE(C29, " ", B29) -> Chris Hilbrands | E29: M | F29: 32 | H29: =IFERROR(IF($E29="M",VLOOKUP($F29,HRoodPLHCP,2),VLOOKUP($F29,DRoodPLHCP,2)),"") -> 15 | I29: =IFERROR(IF($E29="M",VLOOKUP($F29,H10RoodPLHCP,2),VLOOKUP($F29,D10RoodPLHCP,2)),"") -> 15
A30: 29 | B30: Idema | C30: Julia | D30: =CONCATENATE(C30, " ", B30) -> Julia Idema | E30: V | F30: 31.8 | G30: ja | H30: =IFERROR(IF($E30="M",VLOOKUP($F30,HRoodPLHCP,2),VLOOKUP($F30,DRoodPLHCP,2)),"") -> 20 | I30: =IFERROR(IF($E30="M",VLOOKUP($F30,H10RoodPLHCP,2),VLOOKUP($F30,D10RoodPLHCP,2)),"") -> 21
A31: 30 | B31: Jansen | C31: Lea | D31: =CONCATENATE(C31, " ", B31) -> Lea Jansen | E31: V | F31: 36 | H31: =IFERROR(IF($E31="M",VLOOKUP($F31,HRoodPLHCP,2),VLOOKUP($F31,DRoodPLHCP,2)),"") -> 23 | I31: =IFERROR(IF($E31="M",VLOOKUP($F31,H10RoodPLHCP,2),VLOOKUP($F31,D10RoodPLHCP,2)),"") -> 23
A32: 31 | B32: Janssen | C32: Rachel | D32: =CONCATENATE(C32, " ", B32) -> Rachel Janssen | E32: V | F32: 28.8 | H32: =IFERROR(IF($E32="M",VLOOKUP($F32,HRoodPLHCP,2),VLOOKUP($F32,DRoodPLHCP,2)),"") -> 18 | I32: =IFERROR(IF($E32="M",VLOOKUP($F32,H10RoodPLHCP,2),VLOOKUP($F32,D10RoodPLHCP,2)),"") -> 19
A33: 32 | B33: Jensing | C33: Ken | D33: =CONCATENATE(C33, " ", B33) -> Ken Jensing | E33: M | F33: 36 | H33: =IFERROR(IF($E33="M",VLOOKUP($F33,HRoodPLHCP,2),VLOOKUP($F33,DRoodPLHCP,2)),"") -> 17 | I33: =IFERROR(IF($E33="M",VLOOKUP($F33,H10RoodPLHCP,2),VLOOKUP($F33,D10RoodPLHCP,2)),"") -> 16
A34: 33 | B34: Koning | C34: Maaike | D34: =CONCATENATE(C34, " ", B34) -> Maaike Koning | E34: V | F34: 36.4 | G34: ja | H34: =IFERROR(IF($E34="M",VLOOKUP($F34,HRoodPLHCP,2),VLOOKUP($F34,DRoodPLHCP,2)),"") -> 23 | I34: =IFERROR(IF($E34="M",VLOOKUP($F34,H10RoodPLHCP,2),VLOOKUP($F34,D10RoodPLHCP,2)),"") -> 23
A35: 34 | B35: Lamein | C35: Anton | D35: =CONCATENATE(C35, " ", B35) -> Anton Lamein | E35: M | F35: 29.1 | H35: =IFERROR(IF($E35="M",VLOOKUP($F35,HRoodPLHCP,2),VLOOKUP($F35,DRoodPLHCP,2)),"") -> 13 | I35: =IFERROR(IF($E35="M",VLOOKUP($F35,H10RoodPLHCP,2),VLOOKUP($F35,D10RoodPLHCP,2)),"") -> 13
A36: 35 | B36: Meijer | C36: Wies | D36: =CONCATENATE(C36, " ", B36) -> Wies Meijer | E36: V | F36: 14 | G36: ja | H36: =IFERROR(IF($E36="M",VLOOKUP($F36,HRoodPLHCP,2),VLOOKUP($F36,DRoodPLHCP,2)),"") -> 9 | I36: =IFERROR(IF($E36="M",VLOOKUP($F36,H10RoodPLHCP,2),VLOOKUP($F36,D10RoodPLHCP,2)),"") -> 9
A37: 36 | B37: Middel | C37: Arie | D37: =CONCATENATE(C37, " ", B37) -> Arie Middel | E37: M | F37: 19 | G37: ja | H37: =IFERROR(IF($E37="M",VLOOKUP($F37,HRoodPLHCP,2),VLOOKUP($F37,DRoodPLHCP,2)),"") -> 8 | I37: =IFERROR(IF($E37="M",VLOOKUP($F37,H10RoodPLHCP,2),VLOOKUP($F37,D10RoodPLHCP,2)),"") -> 8
A38: 37 | B38: Mollema | C38: Laura | D38: =CONCATENATE(C38, " ", B38) -> Laura Mollema | E38: V | F38: 18.5 | H38: =IFERROR(IF($E38="M",VLOOKUP($F38,HRoodPLHCP,2),VLOOKUP($F38,DRoodPLHCP,2)),"") -> 12 | I38: =IFERROR(IF($E38="M",VLOOKUP($F38,H10RoodPLHCP,2),VLOOKUP($F38,D10RoodPLHCP,2)),"") -> 12
A39: 38 | B39: Mulder | C39: Piet | D39: =CONCATENATE(C39, " ", B39) -> Piet Mulder | E39: M | F39: 25 | H39: =IFERROR(IF($E39="M",VLOOKUP($F39,HRoodPLHCP,2),VLOOKUP($F39,DRoodPLHCP,2)),"") -> 11 | I39: =IFERROR(IF($E39="M",VLOOKUP($F39,H10RoodPLHCP,2),VLOOKUP($F39,D10RoodPLHCP,2)),"") -> 11
A40: 39 | B40: Nieborg | C40: Michiel | D40: =CONCATENATE(C40, " ", B40) -> Michiel Nieborg | E40: M | F40: 21.4 | G40: ja | H40: =IFERROR(IF($E40="M",VLOOKUP($F40,HRoodPLHCP,2),VLOOKUP($F40,DRoodPLHCP,2)),"") -> 9 | I40: =IFERROR(IF($E40="M",VLOOKUP($F40,H10RoodPLHCP,2),VLOOKUP($F40,D10RoodPLHCP,2)),"") -> 9
A41: 40 | B41: Niemeyer | C41: Diane | D41: =CONCATENATE(C41, " ", B41) -> Diane Niemeyer | E41: V | F41: 20.3 | G41: ja | H41: =IFERROR(IF($E41="M",VLOOKUP($F41,HRoodPLHCP,2),VLOOKUP($F41,DRoodPLHCP,2)),"") -> 13 | I41: =IFERROR(IF($E41="M",VLOOKUP($F41,H10RoodPLHCP,2),VLOOKUP($F41,D10RoodPLHCP,2)),"") -> 13
A42: 41 | B42: Oosterhof | C42: Floor | D42: =CONCATENATE(C42, " ", B42) -> Floor Oosterhof | E42: V | F42: 22.5 | H42: =IFERROR(IF($E42="M",VLOOKUP($F42,HRoodPLHCP,2),VLOOKUP($F42,DRoodPLHCP,2)),"") -> 14 | I42: =IFERROR(IF($E42="M",VLOOKUP($F42,H10RoodPLHCP,2),VLOOKUP($F42,D10RoodPLHCP,2)),"") -> 15
A43: 42 | B43: Medema | C43: Pat | D43: =CONCATENATE(C43, " ", B43) -> Pat Medema | E43: M | F43: 36 | G43: ja | H43: =IFERROR(IF($E43="M",VLOOKUP($F43,HRoodPLHCP,2),VLOOKUP($F43,DRoodPLHCP,2)),"") -> 17 | I43: =IFERROR(IF($E43="M",VLOOKUP($F43,H10RoodPLHCP,2),VLOOKUP($F43,D10RoodPLHCP,2)),"") -> 16
A44: 43 | B44: Menkema | C44: Valerie | D44: =CONCATENATE(C44, " ", B44) -> Valerie Menkema | E44: V | F44: 44 | H44: =IFERROR(IF($E44="M",VLOOKUP($F44,HRoodPLHCP,2),VLOOKUP($F44,DRoodPLHCP,2)),"") -> 27 | I44: =IFERROR(IF($E44="M",VLOOKUP($F44,H10RoodPLHCP,2),VLOOKUP($F44,D10RoodPLHCP,2)),"") -> 27
A45: 44 | B45: Niehof | C45: Daan | D45: =CONCATENATE(C45, " ", B45) -> Daan Niehof | E45: M | F45: 43 | H45: =IFERROR(IF($E45="M",VLOOKUP($F45,HRoodPLHCP,2),VLOOKUP($F45,DRoodPLHCP,2)),"") -> 21 | I45: =IFERROR(IF($E45="M",VLOOKUP($F45,H10RoodPLHCP,2),VLOOKUP($F45,D10RoodPLHCP,2)),"") -> 20
A46: 45 | B46: Prins | C46: Bert | D46: =CONCATENATE(C46, " ", B46) -> Bert Prins | E46: M | F46: 36 | G46: ja | H46: =IFERROR(IF($E46="M",VLOOKUP($F46,HRoodPLHCP,2),VLOOKUP($F46,DRoodPLHCP,2)),"") -> 17 | I46: =IFERROR(IF($E46="M",VLOOKUP($F46,H10RoodPLHCP,2),VLOOKUP($F46,D10RoodPLHCP,2)),"") -> 16
A47: 46 | B47: Ridder | C47: Kevin | D47: =CONCATENATE(C47, " ", B47) -> Kevin Ridder | E47: M | F47: 36 | G47: ja | H47: =IFERROR(IF($E47="M",VLOOKUP($F47,HRoodPLHCP,2),VLOOKUP($F47,DRoodPLHCP,2)),"") -> 17 | I47: =IFERROR(IF($E47="M",VLOOKUP($F47,H10RoodPLHCP,2),VLOOKUP($F47,D10RoodPLHCP,2)),"") -> 16
A48: 47 | B48: Schmidt | C48: Tom | D48: =CONCATENATE(C48, " ", B48) -> Tom Schmidt | E48: M | F48: 27.1 | H48: =IFERROR(IF($E48="M",VLOOKUP($F48,HRoodPLHCP,2),VLOOKUP($F48,DRoodPLHCP,2)),"") -> 12 | I48: =IFERROR(IF($E48="M",VLOOKUP($F48,H10RoodPLHCP,2),VLOOKUP($F48,D10RoodPLHCP,2)),"") -> 12
A49: 48 | B49: Stoppels | C49: Jasper | D49: =CONCATENATE(C49, " ", B49) -> Jasper Stoppels | E49: M | F49: 18.4 | G49: ja | H49: =IFERROR(IF($E49="M",VLOOKUP($F49,HRoodPLHCP,2),VLOOKUP($F49,DRoodPLHCP,2)),"") -> 8 | I49: =IFERROR(IF($E49="M",VLOOKUP($F49,H10RoodPLHCP,2),VLOOKUP($F49,D10RoodPLHCP,2)),"") -> 8
A50: 49 | B50: Visser | C50: Thijs | D50: =CONCATENATE(C50, " ", B50) -> Thijs Visser | E50: M | F50: 17.9 | G50: ja | H50: =IFERROR(IF($E50="M",VLOOKUP($F50,HRoodPLHCP,2),VLOOKUP($F50,DRoodPLHCP,2)),"") -> 8 | I50: =IFERROR(IF($E50="M",VLOOKUP($F50,H10RoodPLHCP,2),VLOOKUP($F50,D10RoodPLHCP,2)),"") -> 8
A51: 50 | B51: Wieringa | C51: Hugo | D51: =CONCATENATE(C51, " ", B51) -> Hugo Wieringa | E51: M | F51: 24 | G51: ja | H51: =IFERROR(IF($E51="M",VLOOKUP($F51,HRoodPLHCP,2),VLOOKUP($F51,DRoodPLHCP,2)),"") -> 11 | I51: =IFERROR(IF($E51="M",VLOOKUP($F51,H10RoodPLHCP,2),VLOOKUP($F51,D10RoodPLHCP,2)),"") -> 11
D52: =CONCATENATE(C52, " ", B52) -> 
D53: =CONCATENATE(C53, " ", B53) -> 
D54: =CONCATENATE(C54, " ", B54) -> 
D55: =CONCATENATE(C55, " ", B55) -> 
D56: =CONCATENATE(C56, " ", B56) -> 
D57: =CONCATENATE(C57, " ", B57) -> 
D58: =CONCATENATE(C58, " ", B58) -> 
D59: =CONCATENATE(C59, " ", B59) -> 
D60: =CONCATENATE(C60, " ", B60) -> 
D61: =CONCATENATE(C61, " ", B61) -> 
D62: =CONCATENATE(C62, " ", B62) -> 
D63: =CONCATENATE(C63, " ", B63) -> 
D64: =CONCATENATE(C64, " ", B64) -> 
D65: =CONCATENATE(C65, " ", B65) -> 
D66: =CONCATENATE(C66, " ", B66) -> 
D67: =CONCATENATE(C67, " ", B67) -> 
D68: =CONCATENATE(C68, " ", B68) -> 
D69: =CONCATENATE(C69, " ", B69) -> 
D70: =CONCATENATE(C70, " ", B70) -> 
D71: =CONCATENATE(C71, " ", B71) -> 
D72: =CONCATENATE(C72, " ", B72) -> 
D73: =CONCATENATE(C73, " ", B73) -> 
D74: =CONCATENATE(C74, " ", B74) -> 
D75: =CONCATENATE(C75, " ", B75) -> 
D76: =CONCATENATE(C76, " ", B76) -> 
D77: =CONCATENATE(C77, " ", B77) -> 
D78: =CONCATENATE(C78, " ", B78) -> 
D79: =CONCATENATE(C79, " ", B79) -> 
D80: =CONCATENATE(C80, " ", B80) -> 
D81: =CONCATENATE(C81, " ", B81) -> 

Sheet Flight schema oneven 1-9
A1: Flight schedule Shotgun Greensome - Holes 1-9 | H1: =TODAY() -> 2015-04-20 | N1: Gebruikte termen:
C2: 0.6 | F2: 0.4 | N2: Shotgun
A3: No 1 | B3: Speler 1 | C3: HCP1 | D3: No 2 | E3: Speler 2 | F3: HCP2 | G3: Slagen Mee | H3: Punten | K3: Wedstrijd scores | N3: Greensome
A4: Hole 1 | B4: Flight 1 | K4: Gewonnen | L4: =MAX(L5:L24) -> 0 | M4: Rangschikking
B5: =IFERROR(VLOOKUP($A5,Masterlijst,4,FALSE),"") ->  | C5: =IFERROR(VLOOKUP($A5,Masterlijst,8,FALSE),"") ->  | E5: =IFERROR(VLOOKUP($D5,Masterlijst,4,FALSE),"") ->  | F5: =IFERROR(VLOOKUP($D5,Masterlijst,8,FALSE),"") ->  | G5: =IF(D5>=1,(C5*$C$2)+(F5*$F$2),C5) ->  | K5: Flight 1 | L5: =H7 ->  | M5: =IFERROR(_xlfn.RANK.EQ(L5,$L$5:$L$14),"") -> 
B6: =IFERROR(VLOOKUP($A6,Masterlijst,4,FALSE),"") ->  | C6: =IFERROR(VLOOKUP($A6,Masterlijst,8,FALSE),"") ->  | E6: =IFERROR(VLOOKUP($D6,Masterlijst,4,FALSE),"") ->  | F6: =IFERROR(VLOOKUP($D6,Masterlijst,8,FALSE),"") ->  | G6: =IF(D6>=1,(C6*$C$2)+(F6*$F$2),C6) ->  | K6: Flight 2 | L6: =H11 ->  | M6: =IFERROR(_xlfn.RANK.EQ(L6,$L$5:$L$14)+COUNTIF(L$5:L5,L6),"") -> 
E7: Totaal | H7: =IF(SUM(H5:H6)<=0,"",SUM(H5:H6)) ->  | K7: Flight 3 | L7: =H15 ->  | M7: =IFERROR(_xlfn.RANK.EQ(L7,$L$5:$L$14)+COUNTIF(L$5:L6,L7),"") -> 
A8: Hole 2 | B8: Flight 2 | K8: Flight 4 | L8: =H19 ->  | M8: =IFERROR(_xlfn.RANK.EQ(L8,$L$5:$L$14)+COUNTIF(L$5:L7,L8),"") -> 
A9: 7 | B9: =IFERROR(VLOOKUP($A9,Masterlijst,4,FALSE),"") -> Annie Claassen | C9: =IFERROR(VLOOKUP($A9,Masterlijst,8,FALSE),"") -> 15 | D9: 42 | E9: =IFERROR(VLOOKUP($D9,Masterlijst,4,FALSE),"") -> Pat Medema | F9: =IFERROR(VLOOKUP($D9,Masterlijst,8,FALSE),"") -> 17 | G9: =IF(D9>=1,(C9*$C$2)+(F9*$F$2),C9) -> 15.8 | K9: Flight 5 | L9: =H23 ->  | M9: =IFERROR(_xlfn.RANK.EQ(L9,$L$5:$L$14)+COUNTIF(L$5:L8,L9),"") -> 
A10: 14 | B10: =IFERROR(VLOOKUP($A10,Masterlijst,4,FALSE),"") -> Kim Dijkstra | C10: =IFERROR(VLOOKUP($A10,Masterlijst,8,FALSE),"") -> 15 | D10: 45 | E10: =IFERROR(VLOOKUP($D10,Masterlijst,4,FALSE),"") -> Bert Prins | F10: =IFERROR(VLOOKUP($D10,Masterlijst,8,FALSE),"") -> 17 | G10: =IF(D10>=1,(C10*$C$2)+(F10*$F$2),C10) -> 15.8 | K10: Flight 6 | L10: =H27 ->  | M10: =IFERROR(_xlfn.RANK.EQ(L10,$L$5:$L$14)+COUNTIF(L$5:L9,L10),"") -> 
B11: =IFERROR(VLOOKUP($A11,Masterlijst,4,FALSE),"") ->  | C11: =IFERROR(VLOOKUP($A11,Masterlijst,7,FALSE),"") ->  | E11: Totaal | H11: =IF(SUM(H9:H10)<=0,"",SUM(H9:H10)) ->  | K11: Flight 7 | L11: =H31 ->  | M11: =IFERROR(_xlfn.RANK.EQ(L11,$L$5:$L$14)+COUNTIF(L$5:L10,L11),"") -> 
A12: Hole 3 | B12: Flight 3 | K12: Flight 8 | L12: =H35 ->  | M12: =IFERROR(_xlfn.RANK.EQ(L12,$L$5:$L$14)+COUNTIF(L$5:L11,L12),"") -> 
A13: 5 | B13: =IFERROR(VLOOKUP($A13,Masterlijst,4,FALSE),"") -> Michael Bruin, de | C13: =IFERROR(VLOOKUP($A13,Masterlijst,8,FALSE),"") -> 9 | D13: 19 | E13: =IFERROR(VLOOKUP($D13,Masterlijst,4,FALSE),"") -> Emmy Feikema | F13: =IFERROR(VLOOKUP($D13,Masterlijst,8,FALSE),"") -> 16 | G13: =IF(D13>=1,(C13*$C$2)+(F13*$F$2),C13) -> 11.8 | K13: Flight 9 | L13: =H39 ->  | M13: =IFERROR(_xlfn.RANK.EQ(L13,$L$5:$L$14)+COUNTIF(L$5:L12,L13),"") -> 
A14: 8 | B14: =IFERROR(VLOOKUP($A14,Masterlijst,4,FALSE),"") -> Sandra Cohen | C14: =IFERROR(VLOOKUP($A14,Masterlijst,8,FALSE),"") -> 16 | D14: 46 | E14: =IFERROR(VLOOKUP($D14,Masterlijst,4,FALSE),"") -> Kevin Ridder | F14: =IFERROR(VLOOKUP($D14,Masterlijst,8,FALSE),"") -> 17 | G14: =IF(D14>=1,(C14*$C$2)+(F14*$F$2),C14) -> 16.4 | K14: Flight 10 | L14: =H43 ->  | M14: =IFERROR(_xlfn.RANK.EQ(L14,$L$5:$L$14)+COUNTIF(L$5:L13,L14),"") -> 
E15: Totaal | H15: =IF(SUM(H13:H14)<=0,"",SUM(H13:H14)) -> 
A16: Hole 4 | B16: Flight 4
A17: 36 | B17: =IFERROR(VLOOKUP($A17,Masterlijst,4,FALSE),"") -> Arie Middel | C17: =IFERROR(VLOOKUP($A17,Masterlijst,8,FALSE),"") -> 8 | D17: 15 | E17: =IFERROR(VLOOKUP($D17,Masterlijst,4,FALSE),"") -> Angela Edinga | F17: =IFERROR(VLOOKUP($D17,Masterlijst,8,FALSE),"") -> 18 | G17: =IF(D17>=1,(C17*$C$2)+(F17*$F$2),C17) -> 12
A18: 48 | B18: =IFERROR(VLOOKUP($A18,Masterlijst,4,FALSE),"") -> Jasper Stoppels | C18: =IFERROR(VLOOKUP($A18,Masterlijst,8,FALSE),"") -> 8 | D18: 3 | E18: =IFERROR(VLOOKUP($D18,Masterlijst,4,FALSE),"") -> Ellen Arends | F18: =IFERROR(VLOOKUP($D18,Masterlijst,8,FALSE),"") -> 18 | G18: =IF(D18>=1,(C18*$C$2)+(F18*$F$2),C18) -> 12
E19: Totaal | H19: =IF(SUM(H17:H18)<=0,"",SUM(H17:H18)) -> 
A20: Hole 5 | B20: Flight 5
A21: 11 | B21: =IFERROR(VLOOKUP($A21,Masterlijst,4,FALSE),"") -> Bart Doornbos | C21: =IFERROR(VLOOKUP($A21,Masterlijst,8,FALSE),"") -> 12 | D21: 18 | E21: =IFERROR(VLOOKUP($D21,Masterlijst,4,FALSE),"") -> Sofie Fischer | F21: =IFERROR(VLOOKUP($D21,Masterlijst,8,FALSE),"") -> 18 | G21: =IF(D21>=1,(C21*$C$2)+(F21*$F$2),C21) -> 14.4
A22: 39 | B22: =IFERROR(VLOOKUP($A22,Masterlijst,4,FALSE),"") -> Michiel Nieborg | C22: =IFERROR(VLOOKUP($A22,Masterlijst,8,FALSE),"") -> 9 | D22: 29 | E22: =IFERROR(VLOOKUP($D22,Masterlijst,4,FALSE),"") -> Julia Idema | F22: =IFERROR(VLOOKUP($D22,Masterlijst,8,FALSE),"") -> 20 | G22: =IF(D22>=1,(C22*$C$2)+(F22*$F$2),C22) -> 13.4
E23: Totaal | H23: =IF(SUM(H21:H22)<=0,"",SUM(H21:H22)) -> 
A24: Hole 6 | B24: Flight 6
A25: 6 | B25: =IFERROR(VLOOKUP($A25,Masterlijst,4,FALSE),"") -> Jan Clevering | C25: =IFERROR(VLOOKUP($A25,Masterlijst,8,FALSE),"") -> 13 | D25: 33 | E25: =IFERROR(VLOOKUP($D25,Masterlijst,4,FALSE),"") -> Maaike Koning | F25: =IFERROR(VLOOKUP($D25,Masterlijst,8,FALSE),"") -> 23 | G25: =IF(D25>=1,(C25*$C$2)+(F25*$F$2),C25) -> 17
A26: 21 | B26: =IFERROR(VLOOKUP($A26,Masterlijst,4,FALSE),"") -> Chris Franken | C26: =IFERROR(VLOOKUP($A26,Masterlijst,8,FALSE),"") -> 12 | D26: 25 | E26: =IFERROR(VLOOKUP($D26,Masterlijst,4,FALSE),"") -> Anneke Groot, de | F26: =IFERROR(VLOOKUP($D26,Masterlijst,8,FALSE),"") -> 26 | G26: =IF(D26>=1,(C26*$C$2)+(F26*$F$2),C26) -> 17.6
E27: Totaal | H27: =IF(SUM(H25:H26)<=0,"",SUM(H25:H26)) -> 
A28: Hole 7 | B28: Flight 7
A29: 50 | B29: =IFERROR(VLOOKUP($A29,Masterlijst,4,FALSE),"") -> Hugo Wieringa | C29: =IFERROR(VLOOKUP($A29,Masterlijst,8,FALSE),"") -> 11 | D29: 22 | E29: =IFERROR(VLOOKUP($D29,Masterlijst,4,FALSE),"") -> Daan Geertjes | F29: =IFERROR(VLOOKUP($D29,Masterlijst,8,FALSE),"") -> 12 | G29: =IF(D29>=1,(C29*$C$2)+(F29*$F$2),C29) -> 11.4
A30: 1 | B30: =IFERROR(VLOOKUP($A30,Masterlijst,4,FALSE),"") -> Freek Adorp | C30: =IFERROR(VLOOKUP($A30,Masterlijst,8,FALSE),"") ->  | E30: =IFERROR(VLOOKUP($D30,Masterlijst,4,FALSE),"") ->  | F30: =IFERROR(VLOOKUP($D30,Masterlijst,8,FALSE),"") ->  | G30: =IF(D30>=1,(C30*$C$2)+(F30*$F$2),C30) -> 
E31: Totaal | H31: =IF(SUM(H29:H30)<=0,"",SUM(H29:H30)) -> 
A32: Hole 8 | B32: Flight 8
B33: =IFERROR(VLOOKUP($A33,Masterlijst,4,FALSE),"") ->  | C33: =IFERROR(VLOOKUP($A33,Masterlijst,8,FALSE),"") ->  | E33: =IFERROR(VLOOKUP($D33,Masterlijst,4,FALSE),"") ->  | F33: =IFERROR(VLOOKUP($D33,Masterlijst,8,FALSE),"") ->  | G33: =IF(D33>=1,(C33*$C$2)+(F33*$F$2),C33) -> 
B34: =IFERROR(VLOOKUP($A34,Masterlijst,4,FALSE),"") ->  | C34: =IFERROR(VLOOKUP($A34,Masterlijst,8,FALSE),"") ->  | E34: =IFERROR(VLOOKUP($D34,Masterlijst,4,FALSE),"") ->  | F34: =IFERROR(VLOOKUP($D34,Masterlijst,8,FALSE),"") ->  | G34: =IF(D34>=1,(C34*$C$2)+(F34*$F$2),C34) -> 
E35: Totaal | H35: =IF(SUM(H33:H34)<=0,"",SUM(H33:H34)) -> 
A36: Hole 9 | B36: Flight 9
B37: =IFERROR(VLOOKUP($A37,Masterlijst,4,FALSE),"") ->  | C37: =IFERROR(VLOOKUP($A37,Masterlijst,8,FALSE),"") ->  | E37: =IFERROR(VLOOKUP($D37,Masterlijst,4,FALSE),"") ->  | F37: =IFERROR(VLOOKUP($D37,Masterlijst,8,FALSE),"") ->  | G37: =IF(D37>=1,(C37*$C$2)+(F37*$F$2),C37) -> 
B38: =IFERROR(VLOOKUP($A38,Masterlijst,4,FALSE),"") ->  | C38: =IFERROR(VLOOKUP($A38,Masterlijst,8,FALSE),"") ->  | E38: =IFERROR(VLOOKUP($D38,Masterlijst,4,FALSE),"") ->  | F38: =IFERROR(VLOOKUP($D38,Masterlijst,8,FALSE),"") ->  | G38: =IF(D38>=1,(C38*$C$2)+(F38*$F$2),C38) -> 
E39: Totaal | H39: =IF(SUM(H37:H38)<=0,"",SUM(H37:H38)) -> 
A40: Hole | B40: Flight 10
B41: =IFERROR(VLOOKUP($A41,Masterlijst,4,FALSE),"") ->  | C41: =IFERROR(VLOOKUP($A41,Masterlijst,8,FALSE),"") ->  | E41: =IFERROR(VLOOKUP($D41,Masterlijst,4,FALSE),"") ->  | F41: =IFERROR(VLOOKUP($D41,Masterlijst,8,FALSE),"") ->  | G41: =IF(D41>=1,(C41*$C$2)+(F41*$F$2),C41) -> 
B42: =IFERROR(VLOOKUP($A42,Masterlijst,4,FALSE),"") ->  | C42: =IFERROR(VLOOKUP($A42,Masterlijst,8,FALSE),"") ->  | E42: =IFERROR(VLOOKUP($D42,Masterlijst,4,FALSE),"") ->  | F42: =IFERROR(VLOOKUP($D42,Masterlijst,8,FALSE),"") ->  | G42: =IF(D42>=1,(C42*$C$2)+(F42*$F$2),C42) -> 
E43: Totaal | H43: =IF(SUM(H41:H42)<=0,"",SUM(H41:H42)) -> 

Sheet Etiketten 1-9
A1: Hole | B1: Flight | C1: Speler 1 | D1: Speler 2 | E1: Strokes | F1: Extra Slagen
A2: ='Flight schema oneven 1-9'!A4 -> Hole 1 | B2: ='Flight schema oneven 1-9'!B4 -> Flight 1 | C2: ='Flight schema oneven 1-9'!B5 ->  | D2: ='Flight schema oneven 1-9'!E5 ->  | E2: ='Flight schema oneven 1-9'!G5 ->  | F2: =IFERROR(IF(E2<=0,"",ROUND(E2,0)),"") -> 
A3: ='Flight schema oneven 1-9'!A4 -> Hole 1 | B3: ='Flight schema oneven 1-9'!B4 -> Flight 1 | C3: ='Flight schema oneven 1-9'!B6 ->  | D3: ='Flight schema oneven 1-9'!E6 ->  | E3: ='Flight schema oneven 1-9'!G6 ->  | F3: =IFERROR(IF(E3<=0,"",ROUND(E3,0)),"") -> 
A4: ='Flight schema oneven 1-9'!A8 -> Hole 2 | B4: ='Flight schema oneven 1-9'!B8 -> Flight 2 | C4: ='Flight schema oneven 1-9'!B9 -> Annie Claassen | D4: ='Flight schema oneven 1-9'!E9 -> Pat Medema | E4: ='Flight schema oneven 1-9'!G9 -> 15.8 | F4: 16
A5: ='Flight schema oneven 1-9'!A8 -> Hole 2 | B5: ='Flight schema oneven 1-9'!B8 -> Flight 2 | C5: ='Flight schema oneven 1-9'!B10 -> Kim Dijkstra | D5: ='Flight schema oneven 1-9'!E10 -> Bert Prins | E5: ='Flight schema oneven 1-9'!G10 -> 15.8 | F5: 16
A6: ='Flight schema oneven 1-9'!A12 -> Hole 3 | B6: ='Flight schema oneven 1-9'!B12 -> Flight 3 | C6: ='Flight schema oneven 1-9'!B13 -> Michael Bruin, de | D6: ='Flight schema oneven 1-9'!E13 -> Emmy Feikema | E6: ='Flight schema oneven 1-9'!G13 -> 11.8 | F6: 12
A7: ='Flight schema oneven 1-9'!A12 -> Hole 3 | B7: ='Flight schema oneven 1-9'!B12 -> Flight 3 | C7: ='Flight schema oneven 1-9'!B14 -> Sandra Cohen | D7: ='Flight schema oneven 1-9'!E14 -> Kevin Ridder | E7: ='Flight schema oneven 1-9'!G14 -> 16.4 | F7: 16
A8: ='Flight schema oneven 1-9'!A16 -> Hole 4 | B8: ='Flight schema oneven 1-9'!B16 -> Flight 4 | C8: ='Flight schema oneven 1-9'!B17 -> Arie Middel | D8: ='Flight schema oneven 1-9'!E17 -> Angela Edinga | E8: ='Flight schema oneven 1-9'!G17 -> 12 | F8: 12
A9: ='Flight schema oneven 1-9'!A16 -> Hole 4 | B9: ='Flight schema oneven 1-9'!B16 -> Flight 4 | C9: ='Flight schema oneven 1-9'!B18 -> Jasper Stoppels | D9: ='Flight schema oneven 1-9'!E18 -> Ellen Arends | E9: ='Flight schema oneven 1-9'!G18 -> 12 | F9: 12
A10: ='Flight schema oneven 1-9'!A20 -> Hole 5 | B10: ='Flight schema oneven 1-9'!B20 -> Flight 5 | C10: ='Flight schema oneven 1-9'!B21 -> Bart Doornbos | D10: ='Flight schema oneven 1-9'!E21 -> Sofie Fischer | E10: ='Flight schema oneven 1-9'!G21 -> 14.4 | F10: 14
A11: ='Flight schema oneven 1-9'!A20 -> Hole 5 | B11: ='Flight schema oneven 1-9'!B20 -> Flight 5 | C11: ='Flight schema oneven 1-9'!B22 -> Michiel Nieborg | D11: ='Flight schema oneven 1-9'!E22 -> Julia Idema | E11: ='Flight schema oneven 1-9'!G22 -> 13.4 | F11: 13
A12: ='Flight schema oneven 1-9'!A24 -> Hole 6 | B12: ='Flight schema oneven 1-9'!B24 -> Flight 6 | C12: ='Flight schema oneven 1-9'!B25 -> Jan Clevering | D12: ='Flight schema oneven 1-9'!E25 -> Maaike Koning | E12: ='Flight schema oneven 1-9'!F25 -> 23 | F12: 23
A13: ='Flight schema oneven 1-9'!A24 -> Hole 6 | B13: ='Flight schema oneven 1-9'!B24 -> Flight 6 | C13: ='Flight schema oneven 1-9'!B26 -> Chris Franken | D13: ='Flight schema oneven 1-9'!E26 -> Anneke Groot, de | E13: ='Flight schema oneven 1-9'!G26 -> 17.6 | F13: 18
A14: ='Flight schema oneven 1-9'!A28 -> Hole 7 | B14: ='Flight schema oneven 1-9'!B28 -> Flight 7 | C14: ='Flight schema oneven 1-9'!B29 -> Hugo Wieringa | D14: ='Flight schema oneven 1-9'!E29 -> Daan Geertjes | E14: ='Flight schema oneven 1-9'!G29 -> 11.4 | F14: 11
A15: ='Flight schema oneven 1-9'!A28 -> Hole 7 | B15: ='Flight schema oneven 1-9'!B28 -> Flight 7 | C15: ='Flight schema oneven 1-9'!B30 -> Freek Adorp | D15: ='Flight schema oneven 1-9'!E30 ->  | E15: ='Flight schema oneven 1-9'!G30 -> 
A16: ='Flight schema oneven 1-9'!A32 -> Hole 8 | B16: ='Flight schema oneven 1-9'!B32 -> Flight 8 | C16: ='Flight schema oneven 1-9'!B33 ->  | D16: ='Flight schema oneven 1-9'!E33 ->  | E16: ='Flight schema oneven 1-9'!G33 -> 
A17: ='Flight schema oneven 1-9'!A32 -> Hole 8 | B17: ='Flight schema oneven 1-9'!B32 -> Flight 8 | C17: ='Flight schema oneven 1-9'!B34 ->  | D17: ='Flight schema oneven 1-9'!E34 ->  | E17: ='Flight schema oneven 1-9'!G34 -> 
A18: ='Flight schema oneven 1-9'!A36 -> Hole 9 | B18: ='Flight schema oneven 1-9'!B36 -> Flight 9 | C18: ='Flight schema oneven 1-9'!B37 ->  | D18: ='Flight schema oneven 1-9'!E37 ->  | E18: ='Flight schema oneven 1-9'!G37 -> 
A19: ='Flight schema oneven 1-9'!A36 -> Hole 9 | B19: ='Flight schema oneven 1-9'!B36 -> Flight 9 | C19: ='Flight schema oneven 1-9'!B38 ->  | D19: ='Flight schema oneven 1-9'!E38 ->  | E19: ='Flight schema oneven 1-9'!G38 -> 
A20: ='Flight schema oneven 1-9'!A40 -> Hole | B20: ='Flight schema oneven 1-9'!B40 -> Flight 10 | C20: ='Flight schema oneven 1-9'!B41 ->  | D20: ='Flight schema oneven 1-9'!E41 ->  | E20: ='Flight schema oneven 1-9'!G41 -> 
A21: ='Flight schema oneven 1-9'!A40 -> Hole | B21: ='Flight schema oneven 1-9'!B40 -> Flight 10 | C21: ='Flight schema oneven 1-9'!B42 ->  | D21: ='Flight schema oneven 1-9'!E42 ->  | E21: ='Flight schema oneven 1-9'!G42 -> 

Sheet Flight schema Even 10-18
A1: FlightIndeling Shotgun Greensome - Holes 10-18 | H1: =TODAY() -> 2015-04-20 | N1: Gebruikte begrippen:
C2: 0.6 | F2: 0.4 | N2: Shotgun
A3: No 1 | B3: Player 1 | C3: HCP1 | D3: No 2 | E3: PLayer 2 | F3: HCP2 | G3: Extra Strokes | H3: Point score | K3: Game Scores | N3: Greensome
A4: Hole 10 | B4: Flight 1 | K4: Winning | L4: =MAX(L5:L24) -> 39 | M4: Rank
A5: 16 | B5: =IFERROR(VLOOKUP($A5,Masterlist,4,FALSE),"") -> Julius Eggens | C5: =IFERROR(VLOOKUP($A5,Masterlist,8,FALSE),"") -> 5 | D5: 35 | E5: =IFERROR(VLOOKUP($D5,Masterlist,4,FALSE),"") -> Wies Meijer | F5: =IFERROR(VLOOKUP($D5,Masterlist,8,FALSE),"") -> 9 | G5: =IF(D5>=1,(C5*$C$2)+(F5*$F$2),C5) -> 6.6 | H5: 18 | K5: Flight 1 | L5: =H7 -> 36 | M5: =IFERROR(_xlfn.RANK.EQ(L5,$L$5:$L$14),"") -> 2
A6: 40 | B6: =IFERROR(VLOOKUP($A6,Masterlist,4,FALSE),"") -> Diane Niemeyer | C6: =IFERROR(VLOOKUP($A6,Masterlist,8,FALSE),"") -> 13 | D6: 49 | E6: =IFERROR(VLOOKUP($D6,Masterlist,4,FALSE),"") -> Thijs Visser | F6: =IFERROR(VLOOKUP($D6,Masterlist,8,FALSE),"") -> 8 | G6: =IF(D6>=1,(C6*$C$2)+(F6*$F$2),C6) -> 11 | H6: 18 | K6: Flight 2 | L6: =H11 -> 31 | M6: =IFERROR(_xlfn.RANK.EQ(L6,$L$5:$L$14)+COUNTIF(L$5:L5,L6),"") -> 6
E7: Total | H7: =IF(SUM(H5:H6)<=0,"",SUM(H5:H6)) -> 36 | K7: Flight 3 | L7: =H15 -> 19 | M7: =IFERROR(_xlfn.RANK.EQ(L7,$L$5:$L$14)+COUNTIF(L$5:L6,L7),"") -> 7
A8: Hole 11 | B8: Flight 2 | K8: Flight 4 | L8: =H19 -> 35 | M8: =IFERROR(_xlfn.RANK.EQ(L8,$L$5:$L$14)+COUNTIF(L$5:L7,L8),"") -> 4
A9: 48 | B9: =IFERROR(VLOOKUP($A9,Masterlist,4,FALSE),"") -> Jasper Stoppels | C9: =IFERROR(VLOOKUP($A9,Masterlist,8,FALSE),"") -> 8 | D9: 15 | E9: =IFERROR(VLOOKUP($D9,Masterlist,4,FALSE),"") -> Angela Edinga | F9: =IFERROR(VLOOKUP($D9,Masterlist,8,FALSE),"") -> 18 | G9: =IF(D9>=1,(C9*$C$2)+(F9*$F$2),C9) -> 12 | H9: 12 | K9: Flight 5 | L9: =H23 -> 34 | M9: =IFERROR(_xlfn.RANK.EQ(L9,$L$5:$L$14)+COUNTIF(L$5:L8,L9),"") -> 5
A10: 36 | B10: =IFERROR(VLOOKUP($A10,Masterlist,4,FALSE),"") -> Arie Middel | C10: =IFERROR(VLOOKUP($A10,Masterlist,8,FALSE),"") -> 8 | D10: 19 | E10: =IFERROR(VLOOKUP($D10,Masterlist,4,FALSE),"") -> Emmy Feikema | F10: =IFERROR(VLOOKUP($D10,Masterlist,8,FALSE),"") -> 16 | G10: =IF(D10>=1,(C10*$C$2)+(F10*$F$2),C10) -> 11.2 | H10: 19 | K10: Flight 6 | L10: =H27 -> 36 | M10: =IFERROR(_xlfn.RANK.EQ(L10,$L$5:$L$14)+COUNTIF(L$5:L9,L10),"") -> 3
B11: =IFERROR(VLOOKUP($A11,Masterlist,4,FALSE),"") ->  | C11: =IFERROR(VLOOKUP($A11,Masterlist,8,FALSE),"") ->  | E11: Total | H11: =IF(SUM(H9:H10)<=0,"",SUM(H9:H10)) -> 31 | K11: Flight 7 | L11: =H31 -> 39 | M11: =IFERROR(_xlfn.RANK.EQ(L11,$L$5:$L$14)+COUNTIF(L$5:L10,L11),"") -> 1
A12: Hole 12 | B12: Flight 3 | K12: Flight 8 | L12: =H35 ->  | M12: =IFERROR(_xlfn.RANK.EQ(L12,$L$5:$L$14)+COUNTIF(L$5:L11,L12),"") -> 
A13: 5 | B13: =IFERROR(VLOOKUP($A13,Masterlist,4,FALSE),"") -> Michael Bruin, de | C13: =IFERROR(VLOOKUP($A13,Masterlist,8,FALSE),"") -> 9 | D13: 8 | E13: =IFERROR(VLOOKUP($D13,Masterlist,4,FALSE),"") -> Sandra Cohen | F13: =IFERROR(VLOOKUP($D13,Masterlist,8,FALSE),"") -> 16 | G13: =IF(D13>=1,(C13*$C$2)+(F13*$F$2),C13) -> 11.8 | H13: 10 | K13: Flight 9 | L13: =H39 ->  | M13: =IFERROR(_xlfn.RANK.EQ(L13,$L$5:$L$14)+COUNTIF(L$5:L12,L13),"") -> 
A14: 39 | B14: =IFERROR(VLOOKUP($A14,Masterlist,4,FALSE),"") -> Michiel Nieborg | C14: =IFERROR(VLOOKUP($A14,Masterlist,8,FALSE),"") -> 9 | D14: 3 | E14: =IFERROR(VLOOKUP($D14,Masterlist,4,FALSE),"") -> Ellen Arends | F14: =IFERROR(VLOOKUP($D14,Masterlist,8,FALSE),"") -> 18 | G14: =IF(D14>=1,(C14*$C$2)+(F14*$F$2),C14) -> 12.6 | H14: 9 | K14: Flight 10 | L14: =H43 ->  | M14: =IFERROR(_xlfn.RANK.EQ(L14,$L$5:$L$14)+COUNTIF(L$5:L13,L14),"") -> 
E15: Total | H15: =IF(SUM(H13:H14)<=0,"",SUM(H13:H14)) -> 19
A16: Hole 13 | B16: Flight 4
A17: 2 | B17: =IFERROR(VLOOKUP($A17,Masterlist,4,FALSE),"") -> Dirk Aikema | C17: =IFERROR(VLOOKUP($A17,Masterlist,8,FALSE),"") ->  | D17: 15 | E17: =IFERROR(VLOOKUP($D17,Masterlist,4,FALSE),"") -> Angela Edinga | F17: =IFERROR(VLOOKUP($D17,Masterlist,8,FALSE),"") -> 18 | G17: 17 | H17: 20
A18: 50 | B18: =IFERROR(VLOOKUP($A18,Masterlist,4,FALSE),"") -> Hugo Wieringa | C18: =IFERROR(VLOOKUP($A18,Masterlist,8,FALSE),"") -> 11 | D18: 18 | E18: =IFERROR(VLOOKUP($D18,Masterlist,4,FALSE),"") -> Sofie Fischer | F18: =IFERROR(VLOOKUP($D18,Masterlist,8,FALSE),"") -> 18 | G18: =IF(D18>=1,(C18*$C$2)+(F18*$F$2),C18) -> 13.8 | H18: 15
E19: Total | H19: =IF(SUM(H17:H18)<=0,"",SUM(H17:H18)) -> 35
A20: Hole 14 | B20: Flight 5
A21: 22 | B21: =IFERROR(VLOOKUP($A21,Masterlist,4,FALSE),"") -> Daan Geertjes | C21: =IFERROR(VLOOKUP($A21,Masterlist,8,FALSE),"") -> 12 | D21: 29 | E21: =IFERROR(VLOOKUP($D21,Masterlist,4,FALSE),"") -> Julia Idema | F21: =IFERROR(VLOOKUP($D21,Masterlist,8,FALSE),"") -> 20 | G21: =IF(D21>=1,(C21*$C$2)+(F21*$F$2),C21) -> 15.2 | H21: 16
A22: 21 | B22: =IFERROR(VLOOKUP($A22,Masterlist,4,FALSE),"") -> Chris Franken | C22: =IFERROR(VLOOKUP($A22,Masterlist,8,FALSE),"") -> 12 | D22: 33 | E22: =IFERROR(VLOOKUP($D22,Masterlist,4,FALSE),"") -> Maaike Koning | F22: =IFERROR(VLOOKUP($D22,Masterlist,8,FALSE),"") -> 23 | G22: =IF(D22>=1,(C22*$C$2)+(F22*$F$2),C22) -> 16.4 | H22: 18
E23: Total | H23: =IF(SUM(H21:H22)<=0,"",SUM(H21:H22)) -> 34
A24: Hole 15 | B24: Flight 6
A25: 11 | B25: =IFERROR(VLOOKUP($A25,Masterlist,4,FALSE),"") -> Bart Doornbos | C25: =IFERROR(VLOOKUP($A25,Masterlist,8,FALSE),"") -> 12 | D25: 25 | E25: =IFERROR(VLOOKUP($D25,Masterlist,4,FALSE),"") -> Anneke Groot, de | F25: =IFERROR(VLOOKUP($D25,Masterlist,8,FALSE),"") -> 26 | G25: =IF(D25>=1,(C25*$C$2)+(F25*$F$2),C25) -> 17.6 | H25: 17
A26: 42 | B26: =IFERROR(VLOOKUP($A26,Masterlist,4,FALSE),"") -> Pat Medema | C26: =IFERROR(VLOOKUP($A26,Masterlist,8,FALSE),"") -> 17 | E26: =IFERROR(VLOOKUP($D26,Masterlist,4,FALSE),"") ->  | F26: =IFERROR(VLOOKUP($D26,Masterlist,8,FALSE),"") ->  | G26: =IF(D26>=1,(C26*$C$2)+(F26*$F$2),C26) -> 17 | H26: 19
B27: =IFERROR(VLOOKUP($A27,Masterlist,4,FALSE),"") ->  | C27: =IFERROR(VLOOKUP($A27,Masterlist,8,FALSE),"") ->  | E27: Total | H27: =IF(SUM(H25:H26)<=0,"",SUM(H25:H26)) -> 36
A28: Hole 16 | B28: Flight 7
A29: 45 | B29: =IFERROR(VLOOKUP($A29,Masterlist,4,FALSE),"") -> Bert Prins | C29: =IFERROR(VLOOKUP($A29,Masterlist,8,FALSE),"") -> 17 | D29: 46 | E29: =IFERROR(VLOOKUP($D29,Masterlist,4,FALSE),"") -> Kevin Ridder | F29: =IFERROR(VLOOKUP($D29,Masterlist,8,FALSE),"") -> 17 | G29: =IF(D29>=1,(C29*$C$2)+(F29*$F$2),C29) -> 17 | H29: 19
B30: =IFERROR(VLOOKUP($A30,Masterlist,4,FALSE),"") ->  | C30: =IFERROR(VLOOKUP($A30,Masterlist,8,FALSE),"") ->  | E30: =IFERROR(VLOOKUP($D30,Masterlist,4,FALSE),"") ->  | F30: =IFERROR(VLOOKUP($D30,Masterlist,8,FALSE),"") ->  | G30: =IF(D30>=1,(C30*$C$2)+(F30*$F$2),C30) ->  | H30: 20
E31: Total | H31: =IF(SUM(H29:H30)<=0,"",SUM(H29:H30)) -> 39
A32: Hole 17 | B32: Flight 8
B33: =IFERROR(VLOOKUP($A33,Masterlist,4,FALSE),"") ->  | C33: =IFERROR(VLOOKUP($A33,Masterlist,8,FALSE),"") ->  | E33: =IFERROR(VLOOKUP($D33,Masterlist,4,FALSE),"") ->  | F33: =IFERROR(VLOOKUP($D33,Masterlist,8,FALSE),"") ->  | G33: =IF(D33>=1,(C33*$C$2)+(F33*$F$2),C33) -> 
B34: =IFERROR(VLOOKUP($A34,Masterlist,4,FALSE),"") ->  | C34: =IFERROR(VLOOKUP($A34,Masterlist,8,FALSE),"") ->  | E34: =IFERROR(VLOOKUP($D34,Masterlist,4,FALSE),"") ->  | F34: =IFERROR(VLOOKUP($D34,Masterlist,8,FALSE),"") ->  | G34: =IF(D34>=1,(C34*$C$2)+(F34*$F$2),C34) -> 
E35: Total | H35: =IF(SUM(H33:H34)<=0,"",SUM(H33:H34)) -> 
A36: Hole 18 | B36: Flight 9
B37: =IFERROR(VLOOKUP($A37,Masterlist,4,FALSE),"") ->  | C37: =IFERROR(VLOOKUP($A37,Masterlist,8,FALSE),"") ->  | E37: =IFERROR(VLOOKUP($D37,Masterlist,4,FALSE),"") ->  | F37: =IFERROR(VLOOKUP($D37,Masterlist,8,FALSE),"") ->  | G37: =IF(D37>=1,(C37*$C$2)+(F37*$F$2),C37) -> 
B38: =IFERROR(VLOOKUP($A38,Masterlist,4,FALSE),"") ->  | C38: =IFERROR(VLOOKUP($A38,Masterlist,8,FALSE),"") ->  | E38: =IFERROR(VLOOKUP($D38,Masterlist,4,FALSE),"") ->  | F38: =IFERROR(VLOOKUP($D38,Masterlist,8,FALSE),"") ->  | G38: =IF(D38>=1,(C38*$C$2)+(F38*$F$2),C38) -> 
E39: Total | H39: =IF(SUM(H37:H38)<=0,"",SUM(H37:H38)) -> 
A40: Hole | B40: Flight 10
B41: =IFERROR(VLOOKUP($A41,Masterlist,4,FALSE),"") ->  | C41: =IFERROR(VLOOKUP($A41,Masterlist,8,FALSE),"") ->  | E41: =IFERROR(VLOOKUP($D41,Masterlist,4,FALSE),"") ->  | F41: =IFERROR(VLOOKUP($D41,Masterlist,8,FALSE),"") ->  | G41: =IF(D41>=1,(C41*$C$2)+(F41*$F$2),C41) -> 
B42: =IFERROR(VLOOKUP($A42,Masterlist,4,FALSE),"") ->  | C42: =IFERROR(VLOOKUP($A42,Masterlist,8,FALSE),"") ->  | E42: =IFERROR(VLOOKUP($D42,Masterlist,4,FALSE),"") ->  | F42: =IFERROR(VLOOKUP($D42,Masterlist,8,FALSE),"") ->  | G42: =IF(D42>=1,(C42*$C$2)+(F42*$F$2),C42) -> 
E43: Total | H43: =IF(SUM(H41:H42)<=0,"",SUM(H41:H42)) -> 

Sheet Etiketten Even 10-18
A1: Hole | B1: Flight | C1: Speler 1 | D1: Speler 2 | E1: Slagen | F1: Slagen Mee
A2: ='Flight schema Even 10-18'!A4 -> Hole 10 | B2: ='Flight schema Even 10-18'!B4 -> Flight 1 | C2: ='Flight schema Even 10-18'!B5 -> Julius Eggens | D2: ='Flight schema Even 10-18'!E5 -> Wies Meijer | E2: ='Flight schema Even 10-18'!G5 -> 6.6 | F2: =IFERROR(IF(E2<0,"",ROUND(E2,0)),"") -> 7
A3: ='Flight schema Even 10-18'!A4 -> Hole 10 | B3: ='Flight schema Even 10-18'!B4 -> Flight 1 | C3: ='Flight schema Even 10-18'!B6 -> Diane Niemeyer | D3: ='Flight schema Even 10-18'!E6 -> Thijs Visser | E3: ='Flight schema Even 10-18'!G6 -> 11 | F3: =IFERROR(IF(E3<0,"",ROUND(E3,0)),"") -> 11
A4: ='Flight schema Even 10-18'!A8 -> Hole 11 | B4: ='Flight schema Even 10-18'!B8 -> Flight 2 | C4: ='Flight schema Even 10-18'!B9 -> Jasper Stoppels | D4: ='Flight schema Even 10-18'!E9 -> Angela Edinga | E4: ='Flight schema Even 10-18'!G9 -> 12 | F4: 12
A5: ='Flight schema Even 10-18'!A8 -> Hole 11 | B5: ='Flight schema Even 10-18'!B8 -> Flight 2 | C5: ='Flight schema Even 10-18'!B10 -> Arie Middel | D5: ='Flight schema Even 10-18'!E10 -> Emmy Feikema | E5: ='Flight schema Even 10-18'!G10 -> 11.2 | F5: 11
A6: ='Flight schema Even 10-18'!A12 -> Hole 12 | B6: ='Flight schema Even 10-18'!B12 -> Flight 3 | C6: ='Flight schema Even 10-18'!B13 -> Michael Bruin, de | D6: ='Flight schema Even 10-18'!E13 -> Sandra Cohen | E6: ='Flight schema Even 10-18'!G13 -> 11.8 | F6: 12
A7: ='Flight schema Even 10-18'!A12 -> Hole 12 | B7: ='Flight schema Even 10-18'!B12 -> Flight 3 | C7: ='Flight schema Even 10-18'!B14 -> Michiel Nieborg | D7: ='Flight schema Even 10-18'!E14 -> Ellen Arends | E7: ='Flight schema Even 10-18'!G14 -> 12.6 | F7: 13
A8: ='Flight schema Even 10-18'!A16 -> Hole 13 | B8: ='Flight schema Even 10-18'!B16 -> Flight 4 | C8: ='Flight schema Even 10-18'!B17 -> Dirk Aikema | D8: ='Flight schema Even 10-18'!E17 -> Angela Edinga | E8: ='Flight schema Even 10-18'!G17 -> 17 | F8: 17
A9: ='Flight schema Even 10-18'!A16 -> Hole 13 | B9: ='Flight schema Even 10-18'!B16 -> Flight 4 | C9: ='Flight schema Even 10-18'!B18 -> Hugo Wieringa | D9: ='Flight schema Even 10-18'!E18 -> Sofie Fischer | E9: ='Flight schema Even 10-18'!G18 -> 13.8 | F9: 14
A10: ='Flight schema Even 10-18'!A20 -> Hole 14 | B10: ='Flight schema Even 10-18'!B20 -> Flight 5 | C10: ='Flight schema Even 10-18'!B21 -> Daan Geertjes | D10: ='Flight schema Even 10-18'!E21 -> Julia Idema | E10: ='Flight schema Even 10-18'!G21 -> 15.2 | F10: 15
A11: ='Flight schema Even 10-18'!A20 -> Hole 14 | B11: ='Flight schema Even 10-18'!B20 -> Flight 5 | C11: ='Flight schema Even 10-18'!B22 -> Chris Franken | D11: ='Flight schema Even 10-18'!E22 -> Maaike Koning | E11: ='Flight schema Even 10-18'!G22 -> 16.4 | F11: 16
A12: ='Flight schema Even 10-18'!A24 -> Hole 15 | B12: ='Flight schema Even 10-18'!B24 -> Flight 6 | C12: ='Flight schema Even 10-18'!B25 -> Bart Doornbos | D12: ='Flight schema Even 10-18'!E25 -> Anneke Groot, de | E12: ='Flight schema Even 10-18'!G25 -> 17.6 | F12: 18
A13: ='Flight schema Even 10-18'!A24 -> Hole 15 | B13: ='Flight schema Even 10-18'!B24 -> Flight 6 | C13: ='Flight schema Even 10-18'!B26 -> Pat Medema | D13: ='Flight schema Even 10-18'!E26 ->  | E13: ='Flight schema Even 10-18'!G26 -> 17 | F13: 17
A14: ='Flight schema Even 10-18'!A28 -> Hole 16 | B14: ='Flight schema Even 10-18'!B28 -> Flight 7 | C14: ='Flight schema Even 10-18'!B29 -> Bert Prins | D14: ='Flight schema Even 10-18'!E29 -> Kevin Ridder | E14: ='Flight schema Even 10-18'!G29 -> 17 | F14: 17
A15: ='Flight schema Even 10-18'!A28 -> Hole 16 | B15: ='Flight schema Even 10-18'!B28 -> Flight 7 | C15: ='Flight schema Even 10-18'!B30 ->  | D15: ='Flight schema Even 10-18'!E30 ->  | E15: ='Flight schema Even 10-18'!G30 -> 
A16: ='Flight schema Even 10-18'!A32 -> Hole 17 | B16: ='Flight schema Even 10-18'!B32 -> Flight 8 | C16: ='Flight schema Even 10-18'!B33 ->  | D16: ='Flight schema Even 10-18'!E33 ->  | E16: ='Flight schema Even 10-18'!G33 -> 
A17: ='Flight schema Even 10-18'!A32 -> Hole 17 | B17: ='Flight schema Even 10-18'!B32 -> Flight 8 | C17: ='Flight schema Even 10-18'!B34 ->  | D17: ='Flight schema Even 10-18'!E34 ->  | E17: ='Flight schema Even 10-18'!G34 -> 
A18: ='Flight schema Even 10-18'!A36 -> Hole 18 | B18: ='Flight schema Even 10-18'!B36 -> Flight 9 | C18: ='Flight schema Even 10-18'!B37 ->  | D18: ='Flight schema Even 10-18'!E37 ->  | E18: ='Flight schema Even 10-18'!G37 -> 
A19: ='Flight schema Even 10-18'!A36 -> Hole 18 | B19: ='Flight schema Even 10-18'!B36 -> Flight 9 | C19: ='Flight schema Even 10-18'!B38 ->  | D19: ='Flight schema Even 10-18'!E38 ->  | E19: ='Flight schema Even 10-18'!G38 -> 
A20: ='Flight schema Even 10-18'!A40 -> Hole | B20: ='Flight schema Even 10-18'!B40 -> Flight 10 | C20: ='Flight schema Even 10-18'!B41 ->  | D20: ='Flight schema Even 10-18'!E41 ->  | E20: ='Flight schema Even 10-18'!G41 -> 
A21: ='Flight schema Even 10-18'!A40 -> Hole | B21: ='Flight schema Even 10-18'!B40 -> Flight 10 | C21: ='Flight schema Even 10-18'!B42 ->  | D21: ='Flight schema Even 10-18'!E42 ->  | E21: ='Flight schema Even 10-18'!G42 -> 

Sheet Lookup Handicaps Rood
A1: Rood Heren 1-9 | D1: Rood Dames 1-9 | G1: Rood Men 10-18 | J1: Rood Dames 10-18
A2: Exact HCP | B2: PL HCP | D2: Exact HCP | E2: PL HCP | G2: Exact HCP | H2: PL HCP | J2: Exact HCP | K2: PL HCP
A3: 11.5 | B3: 4 | D3: 11.5 | E3: 7 | G3: 11.5 | H3: 4 | J3: 11.5 | K3: 8
A4: 12 | B4: 5 | D4: 11.6 | E4: 8 | G4: 11.9 | H4: 5 | J4: 12.5 | K4: 9
A5: 14 | B5: 6 | D5: 13.2 | E5: 9 | G5: 13.9 | H5: 6 | J5: 14.1 | K5: 10
A6: 15.9 | B6: 7 | D6: 14.8 | E6: 10 | G6: 15.9 | H6: 7 | J6: 15.7 | K6: 11
A7: 17.8 | B7: 8 | D7: 16.5 | E7: 11 | G7: 17.9 | H7: 8 | J7: 17.3 | K7: 12
A8: 19.8 | B8: 9 | D8: 18.1 | E8: 12 | G8: 19.9 | H8: 9 | J8: 18.9 | K8: 13
A9: 21.7 | B9: 10 | D9: 19.7 | E9: 13 | G9: 21.9 | H9: 10 | J9: 20.5 | K9: 14
A10: 23.6 | B10: 11 | D10: 21.3 | E10: 14 | G10: 24 | H10: 11 | J10: 22.1 | K10: 15
A11: 25.5 | B11: 12 | D11: 23 | E11: 15 | G11: 26 | H11: 12 | J11: 23.7 | K11: 16
A12: 27.5 | B12: 13 | D12: 24.6 | E12: 16 | G12: 28 | H12: 13 | J12: 25.3 | K12: 17
A13: 29.4 | B13: 14 | D13: 26.2 | E13: 17 | G13: 30 | H13: 14 | J13: 26.9 | K13: 18
A14: 31.3 | B14: 15 | D14: 27.9 | E14: 18 | G14: 32 | H14: 15 | J14: 28.5 | K14: 19
A15: 33.3 | B15: 16 | D15: 29.5 | E15: 19 | G15: 34.1 | H15: 16 | J15: 30.1 | K15: 20
A16: 35.2 | B16: 17 | D16: 31.1 | E16: 20 | G16: 37 | H16: 17 | J16: 31.7 | K16: 21
A17: 37 | B17: 18 | D17: 32.7 | E17: 21 | G17: 38 | H17: 18 | J17: 33.3 | K17: 22
A18: 39 | B18: 19 | D18: 34.4 | E18: 22 | G18: 40 | H18: 19 | J18: 34.9 | K18: 23
A19: 41 | B19: 20 | D19: 36 | E19: 23 | G19: 42 | H19: 20 | J19: 37 | K19: 24
A20: 43 | B20: 21 | D20: 38 | E20: 24 | G20: 44 | H20: 21 | J20: 39 | K20: 25
A21: 45 | B21: 22 | D21: 40 | E21: 25 | G21: 46 | H21: 22 | J21: 41 | K21: 26
A22: 47 | B22: 23 | D22: 42 | E22: 26 | G22: 48 | H22: 23 | J22: 43 | K22: 27
A23: 49 | B23: 24 | D23: 44 | E23: 27 | G23: 50 | H23: 24 | J23: 45 | K23: 28
A24: 51 | B24: 25 | D24: 46 | E24: 28 | G24: 52 | H24: 25 | J24: 47 | K24: 29
A25: 53 | B25: 26 | D25: 48 | E25: 29 | G25: 54 | H25: 26 | J25: 49 | K25: 30
D26: 50 | E26: 30 | J26: 51 | K26: 31
D27: 52 | E27: 31 | J27: 53 | K27: 32
D28: 54 | E28: 32

Sheet voobeeld - printbare lijst
A1: Shotgun Wedstrijd [date]
A2: ID | B2: Volledige Naam | C2: DH | D2: Handicap | E2: Shotgun [datum] | F2: PLHCP 10-18 | H2: ID | I2: Volledige Naam | J2: DH | K2: Handicap | L2: Shotgun [datum] | M2: PLHCP 10-18
A3: 35 | B3: Mary Martinez | C3: F | D3: 14 | E3: yes | F3: 9 | H3: 16 | I3: Justin Evans | J3: M | K3: 13.4 | L3: yes | M3: 5
A4: 40 | B4: Diana Niemeyer | C4: F | D4: 20.3 | E4: yes | F4: 13 | H4: 49 | I4: Helen Wood | J4: M | K4: 17.9 | L4: yes | M4: 8
A5: 14 | B5: Kathy Dodge | C5: F | D5: 23.9 | E5: yes | F5: 16 | H5: 48 | I5: Nick Schultz | J5: M | K5: 18.4 | L5: yes | M5: 8
A6: 19 | B6: Deborah Fitch | C6: F | D6: 24.6 | E6: yes | F6: 16 | H6: 36 | I6: Andrew Matthews | J6: M | K6: 19 | L6: yes | M6: 8
A7: 8 | B7: Sheri Chandler | C7: F | D7: 24.7 | E7: yes | F7: 16 | H7: 5 | I7: Mike Burrows | J7: M | K7: 20.4 | L7: yes | M7: 9
A8: 3 | B8: Ellen Applegate | C8: F | D8: 27.9 | E8: yes | F8: 18 | H8: 39 | I8: Mike Murray | J8: M | K8: 21.4 | L8: yes | M8: 9
A9: 15 | B9: Angela Douglass | C9: F | D9: 28.5 | E9: yes | F9: 19 | H9: 2 | I9: David Anderson | J9: M | K9: 21.5 | L9: yes | M9: 9
A10: 18 | B10: Heather Fisher | C10: F | D10: 28.5 | E10: yes | F10: 19 | H10: 50 | I10: Dave Young | J10: M | K10: 24 | L10: yes | M10: 11
A11: 29 | B11: Julie Ipsen | C11: F | D11: 31.8 | E11: yes | F11: 21 | H11: 22 | I11: Daniel Gallagher | J11: M | K11: 26.4 | L11: yes | M11: 12
A12: 33 | B12: Molly King | C12: F | D12: 36.4 | E12: yes | F12: 23 | H12: 21 | I12: Chris Ford | J12: M | K12: 26.5 | L12: yes | M12: 12
A13: 25 | B13: Beth Ann Goldberg | C13: F | D13: 43 | E13: yes | F13: 27 | H13: 11 | I13: Brett Daniel | J13: M | K13: 26.7 | L13: yes | M13: 12
A14: 16 | B14: Justin Evans | C14: M | D14: 13.4 | E14: yes | F14: 5 | H14: 42 | I14: Pat Palmer | J14: M | K14: 36 | L14: yes | M14: 16
A15: 49 | B15: Helen Wood | C15: M | D15: 17.9 | E15: yes | F15: 8 | H15: 45 | I15: Andy Riggs | J15: M | K15: 36 | L15: yes | M15: 16
A16: 48 | B16: Nick Schultz | C16: M | D16: 18.4 | E16: yes | F16: 8 | H16: 46 | I16: Kevin Rodriguez | J16: M | K16: 36 | L16: yes | M16: 16
A17: 36 | B17: Andrew Matthews | C17: M | D17: 19 | E17: yes | F17: 8
A18: 5 | B18: Mike Burrows | C18: M | D18: 20.4 | E18: yes | F18: 9
A19: 39 | B19: Mike Murray | C19: M | D19: 21.4 | E19: yes | F19: 9
A20: 2 | B20: David Anderson | C20: M | D20: 21.5 | E20: yes | F20: 9
A21: 50 | B21: Dave Young | C21: M | D21: 24 | E21: yes | F21: 11
A22: 22 | B22: Dorothy Gallagher | C22: M | D22: 26.4 | E22: yes | F22: 12
A23: 21 | B23: Chris Ford | C23: M | D23: 26.5 | E23: yes | F23: 12
A24: 11 | B24: Brett Daniel | C24: M | D24: 26.7 | E24: yes | F24: 12
A25: 42 | B25: Pat Palmer | C25: M | D25: 36 | E25: yes | F25: 16
A26: 45 | B26: Andy Riggs | C26: M | D26: 36 | E26: yes | F26: 16
A27: 46 | B27: Kevin Rodriguez | C27: M | D27: 36 | E27: yes | F27: 16
